[Event "ITT 1st Parada Jamundi 2022"]
[Site "Jamundi Valle"]
[Date "2022.12.11"]
[Round "10.19"]
[White "Hernandez Pinzon, Helvert"]
[Black "Estrada Velandia, Henry Andres"]
[Result "1-0"]
[ECO "B15"]
[WhiteElo "1835"]
[BlackElo "1883"]
[Annotator "NA RC COMBH"]
[PlyCount "77"]
[EventDate "2022.12.05"]
[EventType "swiss"]
[EventCountry "COL"]
[SourceTitle "playchess.com"]
[Source "ChessBase"]
[SourceQuality "1"]
[TimeControl "5400+30"]

1. e4 {[%emt 0:00:47]} c6 {[%emt 0:11:10]} 2. d4 {[%emt 0:00:25]} d5 {[%emt 0:01:07]} 3. Nc3 {[%emt 0:00:44]} e6 {[%emt 0:00:25]} 4. Nf3 {[%emt 0:00:47]} f6 {[%emt 0:02:00]} 5. Bd3 {[%emt 0:00:35]} Bb4 {[%emt 0:00:15]} 6. Bd2 {[%emt 0:04:55]} Ne7 {[%emt 0:00:08]} 7. Qe2 {[%emt 0:01:20]} O-O {[%emt 0:01:27]} 8. h4 {[%emt 0:02:15]} Nd7 {[%emt 1:17:58]} (8... c5 $14) 9. g4 {[%emt 0:00:31]} (9. O-O-O $16) 9... Nb6 {[%emt 0:00:00]} (9... c5 $11) 10. O-O-O {[%emt 0:00:28]} Bxc3 $16 {[%emt 0:00:00]} (10... e5 $142) 11. Bxc3 {[%emt 0:00:34]} Na4 {[%emt 0:00:00]} 12. Bd2 {[%emt 0:01:58]} b5 {[%emt 0:00:00]} 13. e5 {[%emt 0:00:49]} f5 {[%emt 0:00:00]} 14. gxf5 {[%emt 0:00:14]} Nxf5 {[%emt 0:00:00]} 15. Rdg1 {[%emt 0:00:19]} Kh8 {[%emt 0:00:00]} 16. Rg5 {[%emt 0:01:33]} Bd7 {[%emt 0:00:00]} 17. Rhg1 {[%emt 0:00:18]} Qe7 {[%emt 0:00:00]} 18. Bxf5 {[%emt 0:00:26]} Rxf5 {[%emt 0:00:00]} 19. Rxg7 {[%emt 0:01:12]} Qxg7 {[%emt 0:00:00]} 20. Rxg7 {[%emt 0:00:03]} Kxg7 {[%emt 0:00:00]} 21. Ng5 {[%emt 0:00:50]} Raf8 {[%emt 0:00:00]} 22. f4 {[%emt 0:00:12]} h6 {[%emt 0:00:00]} 23. Nh3 {[%emt 0:00:25]} Be8 {[%emt 0:00:00]} 24. Bb4 {[%emt 0:00:28]} R8f7 {[%emt 0:00:00]} 25. b3 {[%emt 0:00:47]} Nb6 {[%emt 0:00:00]} 26. Bc5 {[%emt 0:02:19]} Nc8 {[%emt 0:00:00]} 27. Kd2 {[%emt 0:01:18]} Kh7 {[%emt 0:00:00]} 28. c4 {[%emt 0:00:48]} Rg7 {[%emt 0:00:00]} 29. cxd5 {[%emt 0:02:09]} cxd5 {[%emt 0:00:00]} 30. Qf3 {[%emt 0:01:02]} Bh5 {[%emt 0:00:00]} 31. Qd3 {[%emt 0:00:44]} a6 {[%emt 0:00:00]} 32. a4 {[%emt 0:00:11]} Rg2+ {[%emt 0:00:00]} 33. Ke1 {[%emt 0:00:56]} Be2 {[%emt 0:00:00]} 34. Qc3 {[%emt 0:00:08]} Bg4 {[%emt 0:00:00]} 35. Bb4 {[%emt 1:15:30]} Bh5 {[%emt 0:13:30]} 36. Qd3 {[%emt 0:00:30]} Re2+ {[%emt 0:00:30]} 37. Kf1 {[%emt 0:00:30]} Re4 {[%emt 0:00:30]} 38. Bc5 Rf7 {[%emt 0:00:30]} 39. Qg3 {[%emt 0:01:00]} 1-0

[Event "ITT 1st Parada Jamundi 2022"]
[Site "Jamundi Valle"]
[Date "2022.12.11"]
[Round "10.20"]
[White "Vacca, Leonardo"]
[Black "Ramirez, Andres Felipe"]
[Result "0-1"]
[ECO "B33"]
[WhiteElo "2041"]
[BlackElo "1571"]
[Annotator "TA"]
[PlyCount "124"]
[EventDate "2022.12.05"]
[EventType "swiss"]
[EventCountry "COL"]
[SourceTitle "playchess.com"]
[Source "ChessBase"]
[SourceQuality "1"]
[TimeControl "5400+30"]

{[%evp 23,124,-27,0,0,18,24,22,25,10,18,17,18,35,33,20,0,18,19,21,21,33,15,19,10,51,58,75,67,79,77,109,91,158,150,180,167,158,68,85,0,2,-12,-13,-64,-51,-61,-69,-50,0,0,204,-142,-170,-170,-178,-306,-282,-291,-204,-164,-30,-18,-17,-34,0,0,0,0,0,0,0,0,0,0,6,3,3,-8,0,0,0,-66,-66,-158,-154,-267,-261,-244,-75,-186,-181,-274,-267,-381,-260,-260,-244,-392,-376,-416,-401,-388,-384]} 1. e4 {[%emt 0:01:29]} c5 {[%emt 0:00:22]} 2. Nf3 {[%emt 0:00:44]} Nc6 {[%emt 0:00:32]} 3. Nc3 {[%emt 0:00:07]} e6 {[%emt 0:04:50]} 4. d4 {[%emt 0:00:51]} cxd4 {[%emt 0:00:09]} 5. Nxd4 {[%emt 0:00:12]} Nf6 {[%emt 0:00:15]} 6. Ndb5 {[%emt 0:04:11]} d6 {[%emt 0:00:14]} 7. Bf4 {[%emt 0:00:02]} e5 {[%emt 0:00:07]} 8. Be3 {[%emt 0:02:18]} (8. Bg5 a6 9. Na3) 8... a6 {[%emt 0:01:09]} 9. Na3 {[%emt 0:00:51]} b5 {[%emt 0:01:11]} 10. Nd5 {[%emt 0:00:08]} Nxd5 {[%emt 0:02:30]} 11. Qxd5 {[%emt 0:06:51]} Bb7 {[%emt 0:01:39]} 12. Be2 {[%emt 0:06:55]} Be7 {[%emt 0:01:19]} (12... Na5 $5 {[%cal Rb7d5]} 13. Qd3 d5 $15) 13. O-O {[%emt 0:00:59] B33: Sicilian: Pelikan and Sveshnikov Variations.} Qc7 {[%emt 0:02:00][%cal Oc6d4]} 14. Qd2 {[%emt 0:00:37] Inhibits Nd4.} O-O {[%emt 0:00:20][%cal Oc6d4]} 15. c4 {[%emt 0:01:24] The position is equal.} b4 {[%emt 0:03:01]} 16. Nc2 {[%emt 0:00:10][%cal Ob2b3]} a5 {[%emt 0:00:32] [#]} 17. Rfd1 $146 {[%emt 0:06:56]} ({Predecessor:} 17. b3 Nd8 18. f3 Ne6 19. Rfb1 Bc6 20. Bf1 Rfb8 21. a3 bxa3 22. Nxa3 {1-0 (40) Bokros,I (2085)-Veres,I (2024) Hungary 2009}) 17... Nd8 {[%emt 0:01:20][%cal Bc6d8,Bd8e6,Be6c5][%mdl 32]} 18. f3 {[%emt 0:01:22]} Ne6 {[%emt 0:00:23]} 19. Rac1 {[%emt 0:02:19]} Rfb8 {[%emt 0:03:19]} 20. b3 {[%emt 0:02:27]} Nc5 {[%emt 0:03:02]} 21. Rb1 {[%emt 0:04:36]} Bc8 {[%emt 0:05:39]} 22. Kh1 {[%emt 0:04:07]} Be6 {[%emt 0:02:49]} 23. Qe1 {[%emt 0:02:29]} f5 {[%emt 0:02:15]} 24. Bxc5 {[%emt 0:04:50]} Qxc5 {[%emt 0:00:35]} 25. exf5 $1 {[%emt 0:46:05]} Bxf5 {[%emt 0:00:16]} 26. Bd3 {[%emt 0:00:00]} Bxd3 {[%emt 0:05:36]} 27. Rxd3 {[%emt 0:00:00]} Bg5 {[%emt 0:01:21]} (27... Rf8 $142) 28. Rbd1 {[%emt 0:00:00]} Ra6 {[%emt 0:00:46]} 29. Rd5 {[%emt 0:00:00]} Qc7 {[%emt 0:00:20]} 30. c5 {[%emt 0:00:00]} (30. Nd4 $16) 30... dxc5 $14 {[%emt 0:01:06]} 31. Rxe5 {[%emt 0:00:00]} (31. Qe4 $16 Re6 32. Ne1) 31... h6 $11 {[%emt 0:02:14]} 32. Qg3 {[%emt 0:00:00][%cal Oe5e8]} Rc6 {[%emt 0:04:01][%cal Og5h4]} 33. f4 {[%emt 0:00:00]} ({White should play} 33. Qe1 $11) 33... Bf6 $15 {[%emt 0:00:52]} 34. Red5 {[%emt 0:00:00]} c4 {[%emt 0:06:17][%cal Oa5a4] Strongly threatening ...a4!} 35. Rd7 {[%emt 0:00:00] Prevents a4.} Qc8 {[%emt 0:02:57]} ({Black should try} 35... Rd8 $15 36. Rxd8+ Bxd8) 36. Ne3 $11 {[%emt 0:00:00]} ({Don't blunder} 36. Qg6 $2 cxb3 37. axb3 Rxc2 $19) 36... c3 $2 {[%emt 0:04:12] [#]} (36... cxb3 $11 37. Nd5 (37. axb3 Rc3 $17) 37... Qf8 38. axb3 Rd6 39. Nxf6+ Rxf6) 37. Nd5 $1 {[%emt 0:00:00]} Qf8 $17 {[%emt 0:01:32]} 38. Qd3 {[%emt 0:00:00][%cal Od5e7]} Kh8 {[%emt 0:03:51]} 39. Ne3 {[%emt 0:00:00]} (39. h3 $142) 39... Re8 $19 {[%emt 0:01:22]} 40. h3 {[%emt 0:00:00]} Rcc8 {[%emt 0:06:32][%cal Oe8e3] And now ...Rxe3! would win.} 41. Ng4 {[%emt 0:00:00]} c2 {[%emt 0:03:47]} (41... Re6 $1 $19 {...c2 is the strong threat.} 42. Qc2 Rce8 43. Nxh6 R6e7 44. Rxe7 Qxe7) 42. Rc1 $11 {[%emt 0:00:00]} Bb2 {[%emt 0:01:01][%csl LRc1,LRf4]} 43. Rxc2 {[%emt 0:00:00]} Re1+ {[%emt 0:02:14]} (43... Rxc2 $5 44. Qxc2 Qxf4 $1 $15) 44. Kh2 {[%emt 0:00:00] Hoping for Rxc8.} Qxf4+ {[%emt 0:01:40]} 45. g3 {[%emt 0:00:00]} Rxc2+ {[%emt 0:01:56]} 46. Qxc2 {[%emt 0:00:00] Rd8+ would kill now.} Qe4 $36 {[%emt 0:01:34][%mdl 2048] White is under pressure. Really sharp!} 47. Qxe4 {[%emt 0:00:00]} Rxe4 {[%emt 0:00:07][%mdl 4096] Endgame KRB-KRN} 48. Kg2 {[%emt 0:00:00]} Re2+ {[%emt 0:00:51]} 49. Kf3 {[%emt 0:00:00]} Rc2 {[%emt 0:00:21]} 50. Rd5 {[%emt 0:00:00]} Ba3 {[%emt 0:00:24]} 51. Rxa5 {[%emt 0:00:00]} Rxa2 {[%emt 0:00:08]} 52. h4 {[%emt 0:00:00]} (52. Rd5 $11) 52... Rb2 $15 {[%emt 0:04:54]} 53. h5 {[%emt 0:00:00]} (53. Ne5 $15 Rxb3+ 54. Kg4 h5+ 55. Kxh5 Rxg3 56. Nf7+ Kg8 57. Ng5) 53... Rxb3+ $17 {[%emt 0:00:19]} 54. Ke4 {[%emt 0:00:00]} (54. Kf2 $17 {was worth a try.} Bb2 55. Rd5) 54... Rxg3 $19 {[%emt 0:02:36]} 55. Ne5 {[%emt 0:00:00]} Bb2 $2 {[%emt 0:01:12]} (55... Kh7 $19 {Threatens to win with ...Rg5.} 56. Nf3 Rg4+ 57. Kd3 Bb2) 56. Ng6+ {[%emt 0:00:00]} (56. Ra8+ $17 Kh7 57. Ng6 Rxg6 58. hxg6+ Kxg6 59. Rb8) 56... Kg8 {[%emt 0:00:35]} 57. Ra7 {[%emt 0:00:00] [#]} (57. Rb5 $142) 57... Rg5 $1 {[%emt 0:01:42]} 58. Nf4 {[%emt 0:02:48]} (58. Rb7 {is a better defense.}) 58... Bc3 {[%emt 0:01:10] aiming for ...b3.} 59. Rb7 {[%emt 0:00:16]} Re5+ {[%emt 0:01:43]} 60. Kf3 {[%emt 0:00:02]} (60. Kd3 $142) 60... Bd2 {[%emt 0:01:08] Black is winning.} 61. Rb8+ {[%emt 0:02:16]} Kh7 {[%emt 0:02:32]} 62. Ng6 {[%emt 0:00:08][%csl Gg6][%cal Rb8h8]} Rxh5 {[%emt 0:00:16] Both players deserved the win here.   Weighted Error Value: White=0.39/Black=0.26 (precise)} 0-1

[Event "ITT 1st Parada Jamundi 2022"]
[Site "Jamundi Valle"]
[Date "2022.12.11"]
[Round "10.21"]
[White "Mata Zambrano, Luis Enrique"]
[Black "Hernandez Bermudez, Manuela"]
[Result "0-1"]
[ECO "D90"]
[WhiteElo "1544"]
[BlackElo "1815"]
[Annotator "NA RC COMBH"]
[PlyCount "86"]
[EventDate "2022.12.05"]
[EventType "swiss"]
[EventCountry "COL"]
[SourceTitle "playchess.com"]
[Source "ChessBase"]
[SourceQuality "1"]
[TimeControl "5400+30"]

1. d4 {[%emt 0:01:33]} Nf6 {[%emt 0:00:13]} 2. c4 {[%emt 0:00:24]} g6 {[%emt 0:00:15]} 3. Nc3 {[%emt 0:00:07]} d5 {[%emt 0:00:19]} 4. cxd5 {[%emt 0:00:06]} Nxd5 {[%emt 0:00:13]} 5. Bd2 {[%emt 0:00:03]} Bg7 {[%emt 0:01:59]} 6. e4 {[%emt 0:00:37]} Nb6 {[%emt 0:00:09]} 7. Nf3 {[%emt 0:00:21]} O-O {[%emt 0:01:24]} 8. Be3 {[%emt 0:01:13]} Nc6 {[%emt 0:01:58]} 9. Qd2 {[%emt 0:05:45]} f5 {[%emt 0:12:18]} 10. e5 {[%emt 0:03:06]} Nb4 {[%emt 0:07:45]} 11. Rc1 {[%emt 0:02:23]} Be6 {[%emt 0:25:06]} 12. Ng5 {[%emt 0:10:32]} Qd7 {[%emt 0:05:11]} 13. Nxe6 {[%emt 0:00:52]} Qxe6 {[%emt 0:00:04]} 14. a3 {[%emt 0:00:23]} N4d5 {[%emt 0:00:31]} 15. Nxd5 {[%emt 0:01:04]} Nxd5 {[%emt 0:00:14]} 16. Bc4 {[%emt 0:00:23]} c6 {[%emt 0:00:50]} 17. O-O {[%emt 0:01:51]} Rad8 {[%emt 0:06:59]} 18. Ba2 {[%emt 0:05:09]} Qf7 {[%emt 0:05:42]} 19. f3 {[%emt 0:07:08]} f4 {[%emt 0:00:17]} 20. Bf2 {[%emt 0:00:11]} Kh8 {[%emt 0:06:05]} 21. Qa5 {[%emt 0:07:26]} a6 {[%emt 0:05:47]} 22. Bh4 {[%emt 0:08:09]} Rd7 {[%emt 0:01:45]} 23. Rfe1 {[%emt 0:02:28]} e6 {[%emt 0:00:09]} 24. Bf2 {[%emt 0:01:06]} g5 {[%emt 0:02:57]} 25. Bb1 {[%emt 0:01:13]} Rg8 {[%emt 0:00:47]} 26. Qd2 {[%emt 0:01:03]} Bf8 {[%emt 0:00:18]} 27. Be4 {[%emt 0:04:50]} Qh5 {[%emt 0:04:25]} 28. h3 {[%emt 0:00:39]} Ne7 {[%emt 0:00:32]} 29. Rc3 {[%emt 0:00:58]} Qf7 {[%emt 0:02:22]} 30. Rb3 {[%emt 0:00:31]} Ng6 {[%emt 0:00:24]} 31. Qc3 {[%emt 0:00:51]} Ne7 {[%emt 0:02:59]} 32. Qc1 {[%emt 0:02:42]} Nf5 {[%emt 0:00:13]} 33. Rd3 {[%emt 0:01:12]} h5 {[%emt 0:00:42]} 34. b4 {[%emt 0:00:46]} Ne7 {[%emt 0:02:18]} 35. Rf1 {[%emt 0:00:39]} Nd5 {[%emt 0:00:13]} 36. Rb3 {[%emt 0:00:53]} Qe8 {[%emt 0:00:15]} 37. Qd2 {[%emt 0:01:15]} Qe7 {[%emt 0:02:44]} 38. Rfb1 {[%emt 0:02:10]} Nb6 {[%emt 0:01:29]} 39. Qc1 {[%emt 0:01:03]} Qd8 {[%emt 0:00:14]} 40. Rd3 {[%emt 0:02:35]} Nd5 {[%emt 0:00:47]} 41. Qe1 {[%emt 0:00:50]} Qa8 {[%emt 0:00:44]} 42. a4 {[%emt 0:01:19]} Nc7 {[%emt 0:00:01]} 43. Qc1 {[%emt 0:02:01]} Kg7 {[%emt 0:01:11]} 0-1

[Event "ITT 1st Parada Jamundi 2022"]
[Site "Jamundi Valle"]
[Date "2022.12.11"]
[Round "10.23"]
[White "Montoya Altamirano, Juan Pablo"]
[Black "Idrobo, Juan Manuel"]
[Result "1/2-1/2"]
[ECO "A41"]
[WhiteElo "1151"]
[BlackElo "1809"]
[Annotator "NA RC COMBH"]
[PlyCount "81"]
[EventDate "2022.12.05"]
[EventType "swiss"]
[EventCountry "COL"]
[SourceTitle "playchess.com"]
[Source "ChessBase"]
[SourceQuality "1"]
[TimeControl "5400+30"]

1. d4 {[%emt 0:01:10]} d6 {[%emt 0:03:38]} 2. Bf4 {[%emt 0:00:15]} Nd7 {[%emt 0:00:15]} 3. Nf3 {[%emt 0:00:13]} c6 {[%emt 0:01:04]} 4. e3 {[%emt 0:00:13]} Qc7 {[%emt 1:27:33]} 5. c3 {[%emt 0:01:08]} e5 {[%emt 0:00:00]} 6. dxe5 {[%emt 0:00:36]} dxe5 {[%emt 0:00:00]} 7. Bg3 {[%emt 0:00:14]} Ngf6 {[%emt 0:00:00]} 8. Nbd2 {[%emt 0:00:18]} b5 {[%emt 0:00:00]} 9. Bd3 {[%emt 0:01:30]} Bc5 {[%emt 0:00:00]} 10. h3 {[%emt 0:03:52]} O-O {[%emt 0:00:00]} 11. O-O {[%emt 0:00:42]} Bb7 {[%emt 0:00:00]} 12. Qc2 {[%emt 0:01:36]} a5 {[%emt 0:00:00]} 13. Ne4 {[%emt 0:04:14]} Nxe4 {[%emt 0:00:00]} 14. Bxe4 {[%emt 0:00:11]} h6 {[%emt 0:00:00]} 15. Rfd1 {[%emt 0:01:58]} Rad8 {[%emt 0:00:00]} 16. Rd2 {[%emt 0:00:35]} Bd6 {[%emt 0:00:00]} 17. Rad1 {[%emt 0:02:11]} Nf6 {[%emt 0:00:00]} 18. Nxe5 {[%emt 0:05:52]} Nxe4 {[%emt 0:00:00]} 19. Qxe4 {[%emt 0:02:06]} Rfe8 {[%emt 0:00:00]} 20. f4 {[%emt 0:00:15]} c5 {[%emt 0:00:00]} 21. Qf5 {[%emt 0:02:13]} f6 {[%emt 0:08:30]} 22. Bh4 {[%emt 0:03:50]} Bxe5 {[%emt 0:00:00]} 23. Rxd8 {[%emt 0:02:58]} Rxd8 {[%emt 0:00:00]} 24. Rxd8+ {[%emt 0:00:16]} Qxd8 {[%emt 0:00:00]} 25. fxe5 {[%emt 0:00:12]} Qd1+ {[%emt 0:00:00]} 26. Qf1 {[%emt 0:07:50]} Qxf1+ {[%emt 0:00:00]} 27. Kxf1 {[%emt 0:00:10]} fxe5 {[%emt 0:00:00]} 28. Bg3 {[%emt 0:00:29]} e4 {[%emt 0:00:00]} 29. Bd6 {[%emt 0:00:09]} c4 {[%emt 0:00:00]} 30. Kf2 {[%emt 0:00:24]} Kf7 {[%emt 0:00:00]} 31. Kg3 {[%emt 0:00:28]} Ke6 {[%emt 0:00:00]} 32. Bc5 {[%emt 0:00:19]} g6 {[%emt 0:00:00]} 33. Kg4 {[%emt 0:00:28]} Bc6 {[%emt 0:00:00]} 34. h4 {[%emt 0:01:12]} Be8 {[%emt 0:00:00]} 35. Kf4 {[%emt 0:00:55]} Bc6 {[%emt 0:00:00]} 36. g4 {[%emt 0:00:42]} h5 {[%emt 0:00:00]} 37. g5 {[%emt 0:02:58]} a4 {[%emt 0:00:00]} 38. a3 {[%emt 0:00:34]} Bd5 {[%emt 0:00:00]} 39. Bd4 {[%emt 0:00:47]} Bc6 {[%emt 0:09:00]} 40. Kg3 {[%emt 0:54:27]} Kf5 {[%emt 0:00:30]} 41. Kh3 {[%emt 0:00:30]} 1/2-1/2

[Event "ITT 1st Parada Jamundi 2022"]
[Site "Jamundi Valle"]
[Date "2022.12.11"]
[Round "10.25"]
[White "Galan Palacio, Anjaly Daniela"]
[Black "Rodriguez, Juan Gabriel"]
[Result "1/2-1/2"]
[ECO "B31"]
[WhiteElo "1758"]
[BlackElo "1665"]
[Annotator "NA RC COMBH"]
[PlyCount "58"]
[EventDate "2022.12.05"]
[EventType "swiss"]
[EventCountry "COL"]
[SourceTitle "playchess.com"]
[Source "ChessBase"]
[SourceQuality "1"]
[TimeControl "5400+30"]

1. e4 {[%emt 0:07:42]} c5 {[%emt 0:01:54]} 2. Nf3 {[%emt 0:00:46]} Nc6 {[%emt 0:02:28]} 3. Bb5 {[%emt 0:01:11]} g6 {[%emt 0:01:29]} 4. d4 {[%emt 0:05:06]} cxd4 {[%emt 0:01:21]} 5. Bxc6 {[%emt 0:00:30]} dxc6 {[%emt 0:00:29]} 6. Qxd4 {[%emt 0:00:16]} Qxd4 {[%emt 0:00:19]} 7. Nxd4 {[%emt 0:00:02]} Bg7 {[%emt 0:00:11]} 8. c3 {[%emt 0:00:44]} Nf6 {[%emt 0:00:27]} 9. f3 {[%emt 0:00:24]} Bd7 {[%emt 0:00:18]} 10. Be3 {[%emt 0:01:38]} c5 {[%emt 0:00:41]} 11. Ne2 {[%emt 0:00:39]} b6 {[%emt 0:00:12]} 12. Nd2 {[%emt 0:00:54]} Bb5 {[%emt 0:00:20]} 13. Kf2 {[%emt 0:01:35]} O-O {[%emt 0:00:22]} 14. c4 {[%emt 0:03:03]} Ba6 {[%emt 0:01:50]} 15. Rad1 {[%emt 0:01:25]} Rad8 {[%emt 0:00:34]} 16. b3 {[%emt 0:01:49]} Nd7 {[%emt 0:00:44]} 17. Nf4 {[%emt 0:09:29]} e6 {[%emt 0:01:06]} 18. Nb1 {[%emt 0:05:35]} Nb8 {[%emt 0:01:16]} 19. Ke2 {[%emt 0:02:21]} Nc6 {[%emt 0:00:07]} 20. Rxd8 {[%emt 0:05:36]} Rxd8 {[%emt 0:00:19]} 21. Rd1 {[%emt 0:00:19]} Nd4+ {[%emt 0:01:12]} 22. Bxd4 {[%emt 0:02:00]} Rxd4 {[%emt 0:03:27]} 23. Rxd4 {[%emt 0:01:17]} Bxd4 {[%emt 0:33:40]} 24. a4 {[%emt 0:05:22]} Bb7 {[%emt 0:07:36]} 25. Na3 {[%emt 0:02:08]} a6 {[%emt 0:01:52]} 26. Nd3 {[%emt 0:03:14]} Bg1 {[%emt 0:03:31]} 27. g3 {[%emt 0:05:55]} Bd4 {[%emt 0:06:14]} 28. Nc2 {[%emt 0:01:50]} Bf6 {[%emt 0:03:29]} 29. a5 {[%emt 0:04:29]} Bd8 {[%emt 0:01:00]} 1/2-1/2

[Event "ITT 1st Parada Jamundi 2022"]
[Site "Jamundi Valle"]
[Date "2022.12.11"]
[Round "10.27"]
[White "Sanchez Barreto, Josue Efrain"]
[Black "Contreras, Camilo Andres"]
[Result "1/2-1/2"]
[ECO "A80"]
[WhiteElo "1349"]
[BlackElo "1848"]
[Annotator "NA RC COMBH"]
[PlyCount "59"]
[EventDate "2022.12.05"]
[EventType "swiss"]
[EventCountry "COL"]
[SourceTitle "playchess.com"]
[Source "ChessBase"]
[SourceQuality "1"]
[TimeControl "5400+30"]

1. d4 {[%emt 0:00:30]} f5 {[%emt 0:04:57]} 2. Nf3 {[%emt 0:00:37]} Nf6 {[%emt 0:02:46]} 3. e3 {[%emt 0:00:25]} e6 {[%emt 0:00:23]} 4. Bd3 {[%emt 0:00:16]} b6 {[%emt 0:00:24]} 5. b3 {[%emt 0:00:24]} Bb7 {[%emt 0:00:15]} 6. O-O {[%emt 0:00:14]} g6 {[%emt 0:00:47]} 7. Bb2 {[%emt 0:00:08]} Bg7 {[%emt 0:00:10]} 8. Nbd2 {[%emt 0:00:09]} O-O {[%emt 1:24:48]} 9. Qe2 {[%emt 1:32:17]} Ne4 {[%emt 0:00:00]} 10. c4 {[%emt 0:00:00]} d6 {[%emt 0:00:00]} 11. Rfd1 $11 {[%emt 0:00:00]} Nd7 {[%emt 0:00:00]} 12. Nf1 {[%emt 0:00:00]} Ndf6 {[%emt 0:00:00]} 13. Ng3 {[%emt 0:00:00]} Nxg3 {[%emt 0:00:00]} 14. hxg3 {[%emt 0:00:00]} Ng4 {[%emt 0:00:00]} 15. e4 {[%emt 0:00:00]} Qe8 {[%emt 0:00:00]} 16. d5 {[%emt 0:00:00]} e5 {[%emt 0:00:00]} 17. Ng5 {[%emt 0:00:00]} Bc8 {[%emt 0:00:00]} 18. f3 {[%emt 0:00:00]} Nf6 {[%emt 0:00:00]} 19. f4 {[%emt 0:00:00]} Ng4 {[%emt 0:00:00]} 20. Re1 {[%emt 0:00:00]} Bd7 {[%emt 0:00:00]} 21. Qd2 {[%emt 0:00:00]} h6 {[%emt 0:00:00]} 22. Nf3 {[%emt 0:00:00]} Qf7 {[%emt 0:00:00]} 23. fxe5 {[%emt 0:00:00]} dxe5 {[%emt 0:00:00]} 24. exf5 {[%emt 0:00:00]} Bxf5 {[%emt 0:00:00]} 25. Nxe5 {[%emt 0:00:00]} Nxe5 {[%emt 0:00:00]} 26. Bxe5 {[%emt 0:00:00]} Bxd3 {[%emt 0:00:00]} 27. Bxg7 {[%emt 0:00:00]} Kxg7 {[%emt 0:00:00]} 28. Qxd3 {[%emt 0:00:00]} Qf2+ {[%emt 0:00:00]} 29. Kh2 {[%emt 0:00:00]} Rf5 {[%emt 0:00:00]} 30. g4 {[%emt 0:10:30]} 1/2-1/2

[Event "ITT 1st Parada Jamundi 2022"]
[Site "Jamundi Valle"]
[Date "2022.12.11"]
[Round "10.28"]
[White "Caro Gallego, James Stiven"]
[Black "Cajamarca Gordillo, Sebastian Alejandro"]
[Result "0-1"]
[ECO "D05"]
[WhiteElo "1884"]
[BlackElo "1618"]
[Annotator "NA RC COMBH"]
[PlyCount "72"]
[EventDate "2022.12.05"]
[EventType "swiss"]
[EventCountry "COL"]
[SourceTitle "playchess.com"]
[Source "ChessBase"]
[SourceQuality "1"]
[TimeControl "5400+30"]

1. d4 {[%emt 0:08:03]} d5 {[%emt 0:01:26]} 2. Nf3 {[%emt 0:08:49]} Nf6 {[%emt 0:00:04]} 3. e3 {[%emt 0:00:26]} e6 {[%emt 0:00:05]} 4. Bd3 {[%emt 0:00:07]} Be7 {[%emt 0:02:18]} 5. O-O {[%emt 0:00:30]} O-O {[%emt 0:00:19]} 6. Nbd2 {[%emt 1:15:35]} Nbd7 {[%emt 0:00:43]} 7. Qe2 {[%emt 0:00:00]} c5 {[%emt 0:00:07]} 8. c3 {[%emt 0:00:00]} Qc7 {[%emt 0:03:11]} 9. e4 {[%emt 0:00:00]} dxe4 {[%emt 0:00:32]} 10. Nxe4 {[%emt 0:00:00]} Nxe4 {[%emt 0:02:01]} 11. Qxe4 $11 {[%emt 0:00:00]} Nf6 {[%emt 0:00:19]} 12. Qh4 {[%emt 0:00:00]} c4 {[%emt 0:03:31]} 13. Bc2 {[%emt 0:00:00]} g6 {[%emt 0:01:25]} 14. Bg5 {[%emt 0:00:00]} Nd5 {[%emt 0:00:44]} 15. Rfe1 {[%emt 0:00:00]} Re8 {[%emt 0:18:51]} 16. Bxe7 {[%emt 0:00:00]} Qxe7 {[%emt 0:00:44]} 17. Qh6 {[%emt 0:00:00]} Qf8 {[%emt 0:00:40]} 18. Qg5 {[%emt 0:00:00]} b6 {[%emt 0:01:08]} 19. h4 {[%emt 0:00:00]} Qe7 {[%emt 0:00:43]} 20. Qg3 {[%emt 0:00:00]} Bb7 {[%emt 0:00:58]} 21. h5 {[%emt 0:00:00]} Qf6 {[%emt 0:01:29]} 22. Ne5 {[%emt 0:00:00]} Rac8 {[%emt 0:01:53]} 23. Be4 {[%emt 0:00:00]} Qg7 {[%emt 0:00:37]} 24. hxg6 {[%emt 0:00:00]} hxg6 {[%emt 0:00:37]} 25. Re2 {[%emt 0:00:00]} Re7 {[%emt 0:07:32]} 26. Rae1 {[%emt 0:00:00]} Nf6 {[%emt 0:02:59]} 27. Bxb7 {[%emt 0:00:00]} Rxb7 {[%emt 0:00:29]} 28. Re3 {[%emt 0:00:00]} b5 {[%emt 0:01:10]} 29. a3 {[%emt 0:00:00]} a5 {[%emt 0:00:36]} 30. Rf3 {[%emt 0:00:00]} Re7 {[%emt 0:01:54]} 31. Qh4 {[%emt 0:00:00]} Nd5 {[%emt 0:01:09]} 32. Re4 {[%emt 0:00:00]} f5 {[%emt 0:03:22]} 33. Re1 {[%emt 0:00:00]} g5 {[%emt 0:00:23]} 34. Qh2 {[%emt 0:00:00]} g4 {[%emt 0:02:02]} 35. Rg3 {[%emt 0:00:00]} Qh7 {[%emt 0:03:36]} 36. f3 {[%emt 0:00:00]} Qxh2+ {[%emt 0:00:00]} 0-1

[Event "ITT 1st Parada Jamundi 2022"]
[Site "Jamundi Valle"]
[Date "2022.12.11"]
[Round "10.29"]
[White "Gomez Saenz, Manuela"]
[Black "Avella Munoz, Andrea"]
[Result "0-1"]
[ECO "C44"]
[WhiteElo "1479"]
[BlackElo "1472"]
[Annotator "NA RC COMBH"]
[PlyCount "66"]
[EventDate "2022.12.05"]
[EventType "swiss"]
[EventCountry "COL"]
[SourceTitle "playchess.com"]
[Source "ChessBase"]
[SourceQuality "1"]
[TimeControl "5400+30"]

1. e4 {[%emt 0:00:33]} e5 {[%emt 0:02:45]} 2. Nf3 {[%emt 0:00:09]} Nc6 {[%emt 0:00:03]} 3. d4 {[%emt 0:00:10]} exd4 {[%emt 0:00:04]} 4. Bc4 {[%emt 0:00:10]} Bb4+ {[%emt 0:00:08]} 5. c3 {[%emt 0:00:48]} dxc3 {[%emt 0:00:07]} 6. O-O {[%emt 0:00:39]} d6 {[%emt 0:03:59]} 7. a3 {[%emt 0:01:45]} Ba5 {[%emt 0:00:14]} 8. b4 {[%emt 0:00:14]} Bb6 {[%emt 0:00:01]} 9. Qb3 {[%emt 0:00:25]} Qf6 {[%emt 0:00:12]} 10. Nxc3 {[%emt 0:05:25]} Nge7 {[%emt 0:00:03]} 11. Bb2 {[%emt 0:02:40]} Qg6 {[%emt 0:03:29]} 12. Ne2 {[%emt 0:07:28]} O-O {[%emt 1:25:25]} 13. Ng3 {[%emt 0:01:18]} Be6 {[%emt 0:00:00]} 14. Rac1 {[%emt 0:06:24]} Bxc4 {[%emt 0:00:00]} 15. Qxc4 {[%emt 0:00:00]} Qe6 {[%emt 0:00:00]} 16. Qc3 {[%emt 0:00:59]} Qg6 {[%emt 0:00:00]} 17. Nh4 {[%emt 0:02:58]} Qg5 {[%emt 0:00:00]} 18. Kh1 {[%emt 0:07:16]} Bd4 {[%emt 0:00:00]} 19. Qb3 {[%emt 0:01:03]} Qxh4 {[%emt 0:00:00]} 20. Bxd4 Nxd4 {[%emt 0:00:00]} 21. Qc4 {[%emt 0:01:20]} Ne6 {[%emt 0:00:00]} 22. Qd5 {[%emt 0:00:43]} b6 {[%emt 0:00:00]} 23. Qd2 {[%emt 0:02:18]} Ng6 {[%emt 0:00:00]} 24. Nf5 {[%emt 0:00:22]} Qxe4 {[%emt 0:00:00]} 25. Ne3 {[%emt 0:00:26]} Ne5 {[%emt 0:00:00]} 26. Nd5 {[%emt 0:00:57]} Nd3 {[%emt 0:00:00]} 27. Ne7+ {[%emt 0:00:27]} Kh8 {[%emt 0:00:00]} 28. Rc3 {[%emt 0:00:24]} Nef4 {[%emt 0:00:00]} 29. f3 {[%emt 0:00:50]} Qxe7 {[%emt 0:00:00]} 30. g3 {[%emt 0:00:04]} Qe5 {[%emt 0:00:00]} 31. gxf4 {[%emt 0:00:45]} Nxf4 {[%emt 0:00:00]} 32. Re1 {[%emt 0:00:38]} Qf6 {[%emt 0:00:00]} 33. Rg1 {[%emt 0:01:20]} Ne2 {[%emt 0:10:30]} 0-1